[Event "*** MasterClass Titled Tuesday Blitz"]
[Site "Chess.com"]
[Date "2017.11.07"]
[Round "7"]
[White "ValeriyGrinev"]
[Black "Mistheoretical"]
[Result "0-1"]
[WhiteElo "2432"]
[BlackElo "2306"]
[TimeControl "180+2"]
[EndTime "15:41:21 PST"]
[Termination "Mistheoretical won by resignation"]

1. d4 {[%clk 0:03:01.9]} 1... Nf6 {[%clk 0:03:00.7]} 2. c4 {[%clk 0:02:50.5]}
2... Nc6 {[%clk 0:03:01.8]} 3. Nf3 {[%clk 0:02:49.7]} 3... e6 {[%clk 0:03:03]}
4. a3 {[%clk 0:02:48.6]} 4... d6 {[%clk 0:03:04.3]} 5. Nc3 {[%clk 0:02:48.3]}
5... g6 {[%clk 0:03:05.7]} 6. e4 {[%clk 0:02:49.4]} 6... Bg7 {[%clk 0:03:07.1]}
7. d5 {[%clk 0:02:50.9]} 7... Ne5 {[%clk 0:03:02.2]} 8. Nxe5 {[%clk 0:02:51.1]}
8... dxe5 {[%clk 0:03:04.1]} 9. f3 {[%clk 0:02:48.1]} 9... O-O {[%clk
0:02:59.4]} 10. Be3 {[%clk 0:02:48.6]} 10... a6 {[%clk 0:02:55.7]} 11. Be2
{[%clk 0:02:36.1]} 11... Nh5 {[%clk 0:02:49.5]} 12. O-O {[%clk 0:02:25]} 12...
Nf4 {[%clk 0:02:49.7]} 13. Rf2 {[%clk 0:02:26.5]} 13... Qe7 {[%clk 0:01:19.3]}
14. Bf1 {[%clk 0:02:23.6]} 14... Rd8 {[%clk 0:01:17.5]} 15. g3 {[%clk
0:02:22.8]} 15... Nh5 {[%clk 0:01:15.3]} 16. Rd2 {[%clk 0:02:24.3]} 16... Bd7
{[%clk 0:01:12.7]} 17. c5 {[%clk 0:02:18.1]} 17... Rac8 {[%clk 0:00:58]} 18. d6
{[%clk 0:02:16.3]} 18... Qe8 {[%clk 0:00:38.9]} 19. dxc7 {[%clk 0:02:09.8]}
19... Rxc7 {[%clk 0:00:37.6]} 20. b4 {[%clk 0:02:11.7]} 20... Rcc8 {[%clk
0:00:30.4]} 21. Qb3 {[%clk 0:02:06.4]} 21... Bc6 {[%clk 0:00:24.8]} 22. Rad1
{[%clk 0:02:06.9]} 22... Rxd2 {[%clk 0:00:25.1]} 23. Rxd2 {[%clk 0:02:08.8]}
23... Rd8 {[%clk 0:00:26.4]} 24. Qd1 {[%clk 0:02:10.1]} 24... Rd4 {[%clk
0:00:19.8]} 25. Ne2 {[%clk 0:02:06.7]} 25... Ba4 {[%clk 0:00:15.2]} 26. Qc1
{[%clk 0:02:02.4]} 26... Rd8 {[%clk 0:00:13.1]} 27. Rxd8 {[%clk 0:02:00.8]}
27... Qxd8 {[%clk 0:00:15]} 28. Qd2 {[%clk 0:02:02.4]} 28... Qf6 {[%clk
0:00:06.1]} 29. Bg2 {[%clk 0:02:01.4]} 29... Bc6 {[%clk 0:00:06.1]} 30. Qd6
{[%clk 0:01:59.8]} 30... h6 {[%clk 0:00:06.3]} 31. Nc3 {[%clk 0:01:57.9]} 31...
g5 {[%clk 0:00:06.7]} 32. a4 {[%clk 0:01:54.5]} 32... Nf4 {[%clk 0:00:05.7]} 33.
Bf1 {[%clk 0:01:54.9]} 33... Ng6 {[%clk 0:00:06]} 34. Kg2 {[%clk 0:01:53.6]}
34... Be8 {[%clk 0:00:05]} 35. b5 {[%clk 0:01:53.5]} 35... axb5 {[%clk
0:00:05.7]} 36. Bxb5 {[%clk 0:01:54.3]} 36... Bf8 {[%clk 0:00:06.2]} 37. Qb8
{[%clk 0:01:52.4]} 37... Bc6 {[%clk 0:00:05.2]} 38. Bxc6 {[%clk 0:01:52]} 38...
bxc6 {[%clk 0:00:07.1]} 39. a5 {[%clk 0:01:53.4]} 39... h5 {[%clk 0:00:07.9]}
40. Qb2 {[%clk 0:01:48.4]} 40... g4 {[%clk 0:00:08.8]} 41. Qe2 {[%clk
0:01:49.5]} 41... gxf3+ {[%clk 0:00:08.8]} 42. Qxf3 {[%clk 0:01:51.4]} 42... Qd8
{[%clk 0:00:09.1]} 43. Qe2 {[%clk 0:01:50.6]} 43... h4 {[%clk 0:00:09.4]} 44. a6
{[%clk 0:01:50.8]} 44... Qa5 {[%clk 0:00:09.3]} 45. Qb2 {[%clk 0:01:39.2]} 45...
Qxa6 {[%clk 0:00:07.2]} 46. Qe2 {[%clk 0:01:32.4]} 46... Qa5 {[%clk 0:00:06.2]}
47. Qc4 {[%clk 0:01:33.2]} 47... hxg3 {[%clk 0:00:05.2]} 48. hxg3 {[%clk
0:01:35.1]} 48... Qa1 {[%clk 0:00:05.7]} 49. Bf2 {[%clk 0:01:32.3]} 49... Qb2
{[%clk 0:00:06.1]} 50. Kf3 {[%clk 0:01:31.1]} 50... Qc2 {[%clk 0:00:05.8]} 51.
Be1 {[%clk 0:01:28.2]} 51... Bh6 {[%clk 0:00:06.1]} 52. Bf2 {[%clk 0:01:27.2]}
52... Bd2 {[%clk 0:00:05.9]} 53. Be3 {[%clk 0:01:07.9]} 53... Qxc3 {[%clk
0:00:05.8]} 54. Qxc3 {[%clk 0:01:07.8]} 54... Bxc3 {[%clk 0:00:07.7]} 0-1

[Event "*** MasterClass Titled Tuesday Blitz"]
[Site "Chess.com"]
[Date "2017.11.07"]
[Round "7"]
[White "TijanaBlagojevic"]
[Black "Blitzstream"]
[Result "0-1"]
[WhiteElo "2263"]
[BlackElo "2494"]
[TimeControl "180+2"]
[EndTime "15:41:24 PST"]
[Termination "Blitzstream won by resignation"]

1. e4 {[%clk 0:03:01.9]} 1... d5 {[%clk 0:03:00]} 2. exd5 {[%clk 0:03:02.7]}
2... Qxd5 {[%clk 0:03:01.9]} 3. Nf3 {[%clk 0:03:03.4]} 3... Nc6 {[%clk
0:03:01.9]} 4. Be2 {[%clk 0:03:04.7]} 4... Bg4 {[%clk 0:03:02.6]} 5. Nc3 {[%clk
0:03:03.1]} 5... Qh5 {[%clk 0:02:54.6]} 6. d4 {[%clk 0:02:48.1]} 6... e6 {[%clk
0:02:48]} 7. O-O {[%clk 0:02:47.2]} 7... Bd6 {[%clk 0:02:46.4]} 8. g3 {[%clk
0:02:39.9]} 8... Nf6 {[%clk 0:02:38]} 9. Nh4 {[%clk 0:02:22.6]} 9... Bxe2 {[%clk
0:02:30.7]} 10. Nxe2 {[%clk 0:02:24.5]} 10... g5 {[%clk 0:02:26.4]} 11. Ng2
{[%clk 0:02:18.9]} 11... O-O-O {[%clk 0:02:08.8]} 12. f3 {[%clk 0:02:04.8]}
12... Bc5 {[%clk 0:01:31.9]} 13. c3 {[%clk 0:02:04.4]} 13... e5 {[%clk
0:01:24.8]} 14. b4 {[%clk 0:01:39.2]} 14... Bb6 {[%clk 0:01:16.7]} 15. Bb2
{[%clk 0:01:32.9]} 15... e4 {[%clk 0:01:10.7]} 16. fxe4 {[%clk 0:01:30.1]} 16...
Ng4 {[%clk 0:01:05.4]} 17. h4 {[%clk 0:01:25.7]} 17... gxh4 {[%clk 0:00:48.1]}
18. Nef4 {[%clk 0:01:26.3]} 18... Qg5 {[%clk 0:00:47.6]} 19. gxh4 {[%clk
0:01:21]} 19... Qg7 {[%clk 0:00:48.2]} 20. a4 {[%clk 0:01:09.5]} 20... a5 {[%clk
0:00:32.7]} 21. bxa5 {[%clk 0:00:46.2]} 21... Nxa5 {[%clk 0:00:25.7]} 22. Ba3
{[%clk 0:00:47.2]} 22... Ne3 {[%clk 0:00:20.4]} 23. Qf3 {[%clk 0:00:46.8]} 23...
Nxf1 {[%clk 0:00:21.5]} 24. Rxf1 {[%clk 0:00:47]} 24... Rhg8 {[%clk 0:00:23.1]}
25. Qh3+ {[%clk 0:00:47.5]} 25... Kb8 {[%clk 0:00:23.9]} 26. Nd5 {[%clk
0:00:48.1]} 26... Nc4 {[%clk 0:00:23.8]} 27. Bb4 {[%clk 0:00:48.1]} 27... Ba7
{[%clk 0:00:15.6]} 28. Qh2 {[%clk 0:00:45.4]} 28... Nd6 {[%clk 0:00:09.9]} 29.
Nf6 {[%clk 0:00:43.7]} 29... Rh8 {[%clk 0:00:09.8]} 30. e5 {[%clk 0:00:44.8]}
30... Nc4 {[%clk 0:00:10.1]} 31. Rf3 {[%clk 0:00:42.7]} 31... Nd2 {[%clk
0:00:10.3]} 32. Rg3 {[%clk 0:00:42.3]} 32... Qh6 {[%clk 0:00:09.9]} 33. Rd3
{[%clk 0:00:40.1]} 33... Ka8 {[%clk 0:00:07.7]} 34. Qf4 {[%clk 0:00:39.9]} 34...
Qxf4 {[%clk 0:00:06.2]} 35. Nxf4 {[%clk 0:00:41.8]} 35... Nc4 {[%clk 0:00:06.5]}
36. h5 {[%clk 0:00:39.3]} 36... Nxe5 {[%clk 0:00:07.2]} 37. Rg3 {[%clk
0:00:36.7]} 37... Nc6 {[%clk 0:00:08.5]} 38. Ba3 {[%clk 0:00:36.9]} 38... Nxd4
{[%clk 0:00:09.8]} 39. N6d5 {[%clk 0:00:34.5]} 39... Ne6+ {[%clk 0:00:10.8]} 40.
Kg2 {[%clk 0:00:33]} 40... Nxf4+ {[%clk 0:00:12]} 41. Nxf4 {[%clk 0:00:33.7]}
41... Rhg8 {[%clk 0:00:13.9]} 42. h6 {[%clk 0:00:34.1]} 42... Rxg3+ {[%clk
0:00:14.4]} 43. Kxg3 {[%clk 0:00:36]} 43... Be3 {[%clk 0:00:16]} 44. Be7 {[%clk
0:00:33.5]} 44... Bxf4+ {[%clk 0:00:13.6]} 45. Kxf4 {[%clk 0:00:35.4]} 45... Rg8
{[%clk 0:00:14.6]} 46. Bf6 {[%clk 0:00:34.7]} 46... Rg6 {[%clk 0:00:15.7]} 47.
Bg7 {[%clk 0:00:36.2]} 47... Ka7 {[%clk 0:00:17.4]} 48. Kf5 {[%clk 0:00:37.7]}
48... Ka6 {[%clk 0:00:18.7]} 49. Bd4 {[%clk 0:00:38.9]} 49... Ka5 {[%clk
0:00:19.7]} 50. Be5 {[%clk 0:00:40.8]} 50... c6 {[%clk 0:00:19.7]} 51. Bc7+
{[%clk 0:00:41]} 51... Kxa4 {[%clk 0:00:20.9]} 52. Be5 {[%clk 0:00:42.7]} 52...
b5 {[%clk 0:00:22.2]} 53. Bd6 {[%clk 0:00:44.1]} 53... Kb3 {[%clk 0:00:22.9]}
54. Bb4 {[%clk 0:00:45.3]} 54... Kc4 {[%clk 0:00:24]} 55. Ba5 {[%clk 0:00:46.3]}
55... Rxh6 {[%clk 0:00:25]} 56. Bd8 {[%clk 0:00:46.3]} 56... Rg6 {[%clk
0:00:26.9]} 57. Ba5 {[%clk 0:00:46.9]} 57... c5 {[%clk 0:00:28.8]} 0-1

[Event "*** MasterClass Titled Tuesday Blitz"]
[Site "Chess.com"]
[Date "2017.11.07"]
[Round "7"]
[White "GeorgMeier"]
[Black "Iball95"]
[Result "1-0"]
[WhiteElo "2680"]
[BlackElo "2582"]
[TimeControl "180+2"]
[EndTime "15:41:24 PST"]
[Termination "GeorgMeier won by resignation"]

1. d4 {[%clk 0:02:59.5]} 1... Nf6 {[%clk 0:03:00.7]} 2. c4 {[%clk 0:02:59.7]}
2... e6 {[%clk 0:03:01.6]} 3. Nf3 {[%clk 0:02:30.3]} 3... d5 {[%clk 0:03:02.1]}
4. g3 {[%clk 0:02:15.9]} 4... Bb4+ {[%clk 0:03:03]} 5. Bd2 {[%clk 0:02:15.3]}
5... Be7 {[%clk 0:03:04.4]} 6. Bg2 {[%clk 0:02:16.3]} 6... O-O {[%clk
0:03:05.5]} 7. O-O {[%clk 0:02:17.9]} 7... Nbd7 {[%clk 0:03:05.4]} 8. Qc2 {[%clk
0:02:19]} 8... Ne4 {[%clk 0:03:05.8]} 9. Rd1 {[%clk 0:02:18.6]} 9... Nxd2 {[%clk
0:03:03.6]} 10. Nbxd2 {[%clk 0:02:18.9]} 10... c6 {[%clk 0:03:04.2]} 11. e4
{[%clk 0:02:20]} 11... dxe4 {[%clk 0:03:04.4]} 12. Nxe4 {[%clk 0:02:20.6]} 12...
Qc7 {[%clk 0:03:05.1]} 13. Rac1 {[%clk 0:02:19.6]} 13... b6 {[%clk 0:02:51.2]}
14. a3 {[%clk 0:02:17.7]} 14... Bb7 {[%clk 0:02:51.1]} 15. c5 {[%clk 0:02:18.3]}
15... Nf6 {[%clk 0:02:41.4]} 16. Ne5 {[%clk 0:02:18.2]} 16... Nd5 {[%clk
0:02:40.8]} 17. b4 {[%clk 0:02:14.1]} 17... b5 {[%clk 0:02:36.5]} 18. Nc3 {[%clk
0:02:07.4]} 18... a5 {[%clk 0:02:35]} 19. Qb3 {[%clk 0:01:58.7]} 19... Bf6
{[%clk 0:02:23.4]} 20. Re1 {[%clk 0:01:58.1]} 20... Rfd8 {[%clk 0:02:23.5]} 21.
Ne4 {[%clk 0:01:45.1]} 21... Be7 {[%clk 0:02:21]} 22. h4 {[%clk 0:01:34.7]}
22... axb4 {[%clk 0:02:20.1]} 23. axb4 {[%clk 0:01:36.6]} 23... Ra4 {[%clk
0:02:20.5]} 24. Nd3 {[%clk 0:01:35.1]} 24... h6 {[%clk 0:02:13.8]} 25. Nc3
{[%clk 0:01:28.3]} 25... Nxc3 {[%clk 0:02:14.4]} 26. Qxc3 {[%clk 0:01:30.2]}
26... Rda8 {[%clk 0:02:03]} 27. Ra1 {[%clk 0:01:20.5]} 27... Bf6 {[%clk
0:01:47.5]} 28. Ne5 {[%clk 0:01:18.8]} 28... R8a6 {[%clk 0:00:59]} 29. Rxa4
{[%clk 0:01:15.5]} 29... bxa4 {[%clk 0:00:51.6]} 30. Ra1 {[%clk 0:01:07.8]}
30... g6 {[%clk 0:00:44.5]} 31. Be4 {[%clk 0:00:59.5]} 31... Kg7 {[%clk
0:00:43.4]} 32. Ng4 {[%clk 0:00:58.1]} 32... Be7 {[%clk 0:00:38.3]} 33. d5+
{[%clk 0:00:57.3]} 33... e5 {[%clk 0:00:28]} 34. d6 {[%clk 0:00:57.4]} 34...
Bxd6 {[%clk 0:00:29.5]} 35. cxd6 {[%clk 0:00:58.7]} 35... Qxd6 {[%clk
0:00:31.4]} 36. Nxe5 {[%clk 0:00:59.2]} 36... Qf6 {[%clk 0:00:30.6]} 37. Ra3
{[%clk 0:00:50.1]} 37... c5 {[%clk 0:00:15.5]} 38. Bxb7 {[%clk 0:00:41.4]} 38...
cxb4 {[%clk 0:00:16.8]} 39. Qxb4 {[%clk 0:00:43.3]} 39... Rb6 {[%clk 0:00:16.9]}
40. Qe4 {[%clk 0:00:44.6]} 40... Qe7 {[%clk 0:00:13.4]} 41. Rxa4 {[%clk
0:00:39.1]} 41... Rxb7 {[%clk 0:00:14.8]} 42. Qd4 {[%clk 0:00:40.2]} 42... f6
{[%clk 0:00:14.9]} 43. Ng4 {[%clk 0:00:34.2]} 43... h5 {[%clk 0:00:14.9]} 44.
Ne3 {[%clk 0:00:34.7]} 44... Rd7 {[%clk 0:00:15.4]} 45. Qa1 {[%clk 0:00:34.8]}
45... Kh6 {[%clk 0:00:15.7]} 46. Ra6 {[%clk 0:00:34.9]} 46... Rd6 {[%clk
0:00:15.3]} 47. Qa3 {[%clk 0:00:32.7]} 47... Rd1+ {[%clk 0:00:04.2]} 48. Nxd1
{[%clk 0:00:33.3]} 48... Qe1+ {[%clk 0:00:06.1]} 49. Kg2 {[%clk 0:00:34.7]}
49... Qxd1 {[%clk 0:00:07.4]} 50. Qf3 {[%clk 0:00:36.2]} 50... Qd4 {[%clk
0:00:07.4]} 51. Qe3+ {[%clk 0:00:37.1]} 1-0

[Event "*** MasterClass Titled Tuesday Blitz"]
[Site "Chess.com"]
[Date "2017.11.07"]
[Round "7"]
[White "ChainsOfFantasia"]
[Black "Angry_Serb"]
[Result "1-0"]
[WhiteElo "2502"]
[BlackElo "2431"]
[TimeControl "180+2"]
[EndTime "15:41:25 PST"]
[Termination "ChainsOfFantasia won on time"]

1. d4 {[%clk 0:03:01.9]} 1... Nf6 {[%clk 0:03:00.2]} 2. c4 {[%clk 0:03:00.3]}
2... c5 {[%clk 0:02:55.8]} 3. d5 {[%clk 0:03:00.8]} 3... e6 {[%clk 0:02:57.3]}
4. Nc3 {[%clk 0:03:01.6]} 4... exd5 {[%clk 0:02:57.9]} 5. cxd5 {[%clk
0:03:03.5]} 5... Bd6 {[%clk 0:02:59.3]} 6. Nf3 {[%clk 0:03:01.5]} 6... Bc7
{[%clk 0:03:00.2]} 7. e4 {[%clk 0:03:01]} 7... d6 {[%clk 0:03:01.2]} 8. Bd3
{[%clk 0:03:01.8]} 8... a6 {[%clk 0:03:01.2]} 9. h3 {[%clk 0:03:02.5]} 9... b5
{[%clk 0:03:01.2]} 10. O-O {[%clk 0:03:03.6]} 10... O-O {[%clk 0:03:01.4]} 11.
Re1 {[%clk 0:03:04.6]} 11... Re8 {[%clk 0:03:01.6]} 12. Bf4 {[%clk 0:03:05.7]}
12... Nbd7 {[%clk 0:03:02.2]} 13. a4 {[%clk 0:03:04.2]} 13... c4 {[%clk
0:02:48]} 14. Bf1 {[%clk 0:02:59.8]} 14... b4 {[%clk 0:02:13.7]} 15. Na2 {[%clk
0:03:00.4]} 15... Nxe4 {[%clk 0:02:04.2]} 16. Nxb4 {[%clk 0:02:57.1]} 16... Qf6
{[%clk 0:01:58.7]} 17. Be3 {[%clk 0:02:48.3]} 17... Ba5 {[%clk 0:01:55.8]} 18.
Bd4 {[%clk 0:02:43.4]} 18... Qg6 {[%clk 0:01:47.4]} 19. Bc3 {[%clk 0:02:25.7]}
19... Ndf6 {[%clk 0:01:37.5]} 20. Nc6 {[%clk 0:02:16]} 20... Bxc3 {[%clk
0:01:36.2]} 21. bxc3 {[%clk 0:02:15.1]} 21... Bxh3 {[%clk 0:01:37.1]} 22. Qd4
{[%clk 0:01:56.7]} 22... Bg4 {[%clk 0:01:03.1]} 23. Nh2 {[%clk 0:01:46.1]} 23...
Bd7 {[%clk 0:01:00.3]} 24. Bxc4 {[%clk 0:01:40.8]} 24... Qg5 {[%clk 0:00:51.1]}
25. Nf3 {[%clk 0:01:34.1]} 25... Qh5 {[%clk 0:00:49.8]} 26. Bd3 {[%clk
0:01:27.2]} 26... Nc5 {[%clk 0:00:50.4]} 27. Bc4 {[%clk 0:01:13.2]} 27... Nfe4
{[%clk 0:00:39.2]} 28. Nd2 {[%clk 0:01:04.1]} 28... Bf5 {[%clk 0:00:27.3]} 29.
Nxe4 {[%clk 0:01:03.1]} 29... Bxe4 {[%clk 0:00:26.7]} 30. f3 {[%clk 0:01:01.1]}
30... Bxf3 {[%clk 0:00:20.4]} 31. gxf3 {[%clk 0:01:00.7]} 31... Qxf3 {[%clk
0:00:22.3]} 32. Bf1 {[%clk 0:00:52.3]} 32... Qg3+ {[%clk 0:00:22.4]} 33. Bg2
{[%clk 0:00:41.7]} 33... Rxe1+ {[%clk 0:00:24.3]} 34. Rxe1 {[%clk 0:00:42.9]}
34... Qxe1+ {[%clk 0:00:26.2]} 35. Kh2 {[%clk 0:00:44.2]} 35... Re8 {[%clk
0:00:25.3]} 36. Qf4 {[%clk 0:00:36.4]} 36... Ne4 {[%clk 0:00:16.5]} 37. Qg4
{[%clk 0:00:25.9]} 37... Nf6 {[%clk 0:00:15.4]} 38. Qf4 {[%clk 0:00:25.7]} 38...
Qxc3 {[%clk 0:00:10.8]} 39. Qxd6 {[%clk 0:00:25.8]} 39... Ng4+ {[%clk
0:00:11.8]} 40. Kg1 {[%clk 0:00:25.5]} 40... Re1+ {[%clk 0:00:11.8]} 41. Bf1
{[%clk 0:00:26.8]} 41... Qe3+ {[%clk 0:00:13.4]} 42. Kg2 {[%clk 0:00:27.7]}
42... Qf2+ {[%clk 0:00:10.8]} 43. Kh3 {[%clk 0:00:29]} 43... Qf3+ {[%clk
0:00:11.9]} 44. Kh4 {[%clk 0:00:27.5]} 44... g5+ {[%clk 0:00:12.1]} 45. Kxg5
{[%clk 0:00:27]} 45... Qxf1 {[%clk 0:00:10.8]} 46. Ne7+ {[%clk 0:00:27.6]} 46...
Kg7 {[%clk 0:00:09.3]} 47. Nf5+ {[%clk 0:00:27.8]} 47... Kg8 {[%clk 0:00:09.5]}
48. Qd8+ {[%clk 0:00:27.9]} 1-0

[Event "*** MasterClass Titled Tuesday Blitz"]
[Site "Chess.com"]
[Date "2017.11.07"]
[Round "7"]
[White "Msb2"]
[Black "Salem-AR"]
[Result "0-1"]
[WhiteElo "2649"]
[BlackElo "2796"]
[TimeControl "180+2"]
[EndTime "15:41:43 PST"]
[Termination "Salem-AR won by resignation"]

1. d4 {[%clk 0:03:01.9]} 1... Nf6 {[%clk 0:02:49.8]} 2. c4 {[%clk 0:03:02.6]}
2... g6 {[%clk 0:02:51]} 3. Nc3 {[%clk 0:03:03.4]} 3... d5 {[%clk 0:02:52.6]} 4.
Bg5 {[%clk 0:03:03.3]} 4... Ne4 {[%clk 0:02:53.1]} 5. h4 {[%clk 0:03:04]} 5...
c5 {[%clk 0:02:51.9]} 6. cxd5 {[%clk 0:03:04.8]} 6... Nxc3 {[%clk 0:02:49.1]} 7.
bxc3 {[%clk 0:03:06.7]} 7... Qxd5 {[%clk 0:02:50]} 8. e3 {[%clk 0:03:08.3]} 8...
Nc6 {[%clk 0:02:48.5]} 9. Qf3 {[%clk 0:03:07.7]} 9... Qf5 {[%clk 0:02:29.4]} 10.
Bb5 {[%clk 0:02:57.5]} 10... Bd7 {[%clk 0:02:20.5]} 11. Qxf5 {[%clk 0:02:55.6]}
11... gxf5 {[%clk 0:02:19.7]} 12. Nf3 {[%clk 0:02:55.4]} 12... Rg8 {[%clk
0:02:19.7]} 13. Kf1 {[%clk 0:02:31.2]} 13... a6 {[%clk 0:02:10.8]} 14. Be2
{[%clk 0:02:28.6]} 14... O-O-O {[%clk 0:02:02.4]} 15. Rb1 {[%clk 0:02:16.6]}
15... Be6 {[%clk 0:01:50.2]} 16. a4 {[%clk 0:02:07.9]} 16... Bd5 {[%clk
0:01:47.5]} 17. Rh3 {[%clk 0:02:00.7]} 17... f6 {[%clk 0:01:48]} 18. Bf4 {[%clk
0:02:01.6]} 18... e5 {[%clk 0:01:49.6]} 19. dxe5 {[%clk 0:02:01]} 19... fxe5
{[%clk 0:01:50.6]} 20. Bg5 {[%clk 0:01:59.3]} 20... Rd7 {[%clk 0:01:51.5]} 21.
c4 {[%clk 0:01:34.1]} 21... Be4 {[%clk 0:01:51.8]} 22. Rc1 {[%clk 0:01:26.8]}
22... h6 {[%clk 0:01:51.4]} 23. Bf6 {[%clk 0:01:27.4]} 23... Rg6 {[%clk
0:01:51.9]} 24. Bh8 {[%clk 0:01:18]} 24... Rg8 {[%clk 0:01:53.1]} 25. Bf6 {[%clk
0:01:04.9]} 25... Rd6 {[%clk 0:01:47.7]} 26. Ne1 {[%clk 0:00:47.9]} 26... f4
{[%clk 0:01:26.5]} 27. Bxe5 {[%clk 0:00:24.9]} 27... Nxe5 {[%clk 0:01:25.9]} 28.
exf4 {[%clk 0:00:26.8]} 28... Nc6 {[%clk 0:01:26.6]} 29. Re3 {[%clk 0:00:27.5]}
29... Bf5 {[%clk 0:01:23.7]} 30. Nf3 {[%clk 0:00:27.2]} 30... Bg7 {[%clk
0:01:17.8]} 31. Ne5 {[%clk 0:00:28.1]} 31... Bxe5 {[%clk 0:01:04.6]} 32. fxe5
{[%clk 0:00:30]} 32... Rd4 {[%clk 0:01:06.3]} 33. g3 {[%clk 0:00:28.4]} 33...
Kd7 {[%clk 0:00:55.5]} 34. Bf3 {[%clk 0:00:29.3]} 34... Be6 {[%clk 0:00:55.4]}
35. Be2 {[%clk 0:00:28.2]} 35... Na5 {[%clk 0:00:54.7]} 36. Rec3 {[%clk
0:00:27.5]} 36... Bh3+ {[%clk 0:00:47.4]} 37. Ke1 {[%clk 0:00:27.9]} 37... Re4
{[%clk 0:00:48]} 38. f4 {[%clk 0:00:22.1]} 38... Bg4 {[%clk 0:00:48.7]} 39. R1c2
{[%clk 0:00:23.6]} 39... Ke6 {[%clk 0:00:45]} 40. Kf2 {[%clk 0:00:24.1]} 40...
Bxe2 {[%clk 0:00:45]} 41. Rxe2 {[%clk 0:00:26]} 41... Rxc4 {[%clk 0:00:46]} 42.
Rf3 {[%clk 0:00:19.2]} 42... Kf5 {[%clk 0:00:43.7]} 43. e6 {[%clk 0:00:20.4]}
43... Nc6 {[%clk 0:00:45.4]} 44. e7 {[%clk 0:00:18.6]} 44... Re8 {[%clk
0:00:38.6]} 45. Rfe3 {[%clk 0:00:20]} 45... Rxa4 {[%clk 0:00:34.4]} 46. Re6
{[%clk 0:00:20.9]} 46... h5 {[%clk 0:00:28]} 47. Kg2 {[%clk 0:00:19.1]} 47...
Ra2 {[%clk 0:00:28.8]} 48. Rxa2 {[%clk 0:00:07.3]} 48... Kxe6 {[%clk 0:00:29.3]}
49. Re2+ {[%clk 0:00:07.3]} 49... Kf5 {[%clk 0:00:29.8]} 50. Rd2 {[%clk
0:00:08.3]} 50... Nd4 {[%clk 0:00:28.8]} 0-1

[Event "*** MasterClass Titled Tuesday Blitz"]
[Site "Chess.com"]
[Date "2017.11.07"]
[Round "7"]
[White "FairChess_on_YouTube"]
[Black "Dr-Bassem"]
[Result "1-0"]
[WhiteElo "2788"]
[BlackElo "2606"]
[TimeControl "180+2"]
[EndTime "15:41:48 PST"]
[Termination "FairChess_on_YouTube won on time"]

1. d4 {[%clk 0:03:01.9]} 1... Nf6 {[%clk 0:03:00.3]} 2. Bg5 {[%clk 0:03:02.5]}
2... Ne4 {[%clk 0:02:57.3]} 3. Bf4 {[%clk 0:03:03.1]} 3... d5 {[%clk 0:02:57.4]}
4. f3 {[%clk 0:03:03.3]} 4... Nf6 {[%clk 0:02:57.8]} 5. Nc3 {[%clk 0:03:04.5]}
5... c5 {[%clk 0:02:47.9]} 6. e4 {[%clk 0:03:03.2]} 6... cxd4 {[%clk 0:02:41.1]}
7. Qxd4 {[%clk 0:03:03.2]} 7... Nc6 {[%clk 0:02:41.7]} 8. Bb5 {[%clk 0:03:03.6]}
8... Bd7 {[%clk 0:02:42.6]} 9. Bxc6 {[%clk 0:03:04]} 9... Bxc6 {[%clk
0:02:43.5]} 10. e5 {[%clk 0:03:05.2]} 10... Nd7 {[%clk 0:02:43.7]} 11. e6 {[%clk
0:03:06.4]} 11... fxe6 {[%clk 0:02:45.4]} 12. O-O-O {[%clk 0:03:07.1]} 12... e5
{[%clk 0:02:34.4]} 13. Bxe5 {[%clk 0:03:07.2]} 13... e6 {[%clk 0:02:35.5]} 14.
Bg3 {[%clk 0:02:51]} 14... Qf6 {[%clk 0:02:00.4]} 15. Nge2 {[%clk 0:02:42.3]}
15... Bc5 {[%clk 0:01:59.6]} 16. Qg4 {[%clk 0:02:42.3]} 16... O-O {[%clk
0:01:52.7]} 17. Nd4 {[%clk 0:02:39.6]} 17... h5 {[%clk 0:01:40.4]} 18. Qxe6+
{[%clk 0:02:36.6]} 18... Kh8 {[%clk 0:01:13.3]} 19. Qxf6 {[%clk 0:02:34]} 19...
Nxf6 {[%clk 0:01:13.7]} 20. Ne6 {[%clk 0:02:31.1]} 20... Be3+ {[%clk 0:01:13]}
21. Kb1 {[%clk 0:02:32.3]} 21... Rf7 {[%clk 0:01:11.5]} 22. Rhe1 {[%clk
0:02:32.5]} 22... Bb6 {[%clk 0:01:11.4]} 23. Be5 {[%clk 0:02:28.5]} 23... Re8
{[%clk 0:01:08.7]} 24. Ng5 {[%clk 0:01:48.1]} 24... Rfe7 {[%clk 0:01:08.8]} 25.
f4 {[%clk 0:01:49]} 25... d4 {[%clk 0:01:08.9]} 26. Nce4 {[%clk 0:01:49.7]}
26... Ng4 {[%clk 0:00:53.9]} 27. Nd6 {[%clk 0:01:36.8]} 27... Rf8 {[%clk
0:00:54.7]} 28. Nc4 {[%clk 0:01:36.3]} 28... Bxg2 {[%clk 0:00:19.3]} 29. Nxb6
{[%clk 0:01:25.6]} 29... axb6 {[%clk 0:00:21.2]} 30. Bxd4 {[%clk 0:01:21]} 30...
Rxe1 {[%clk 0:00:11.9]} 31. Rxe1 {[%clk 0:01:22.9]} 31... Bc6 {[%clk 0:00:13.2]}
32. h3 {[%clk 0:01:04.4]} 32... Nh6 {[%clk 0:00:09.8]} 33. Bxg7+ {[%clk
0:00:25.1]} 33... Kxg7 {[%clk 0:00:10.1]} 34. Ne6+ {[%clk 0:00:26.7]} 34... Kf7
{[%clk 0:00:11.2]} 35. Nxf8 {[%clk 0:00:28.3]} 35... Kxf8 {[%clk 0:00:12.7]} 36.
Re5 {[%clk 0:00:29.9]} 36... Bf3 {[%clk 0:00:09]} 37. c4 {[%clk 0:00:30.5]}
37... Kf7 {[%clk 0:00:07.9]} 38. Kc1 {[%clk 0:00:29.6]} 38... Kf6 {[%clk
0:00:06]} 39. Rb5 {[%clk 0:00:28.5]} 39... Nf5 {[%clk 0:00:07.1]} 40. Rxb6+
{[%clk 0:00:29.4]} 40... Ke7 {[%clk 0:00:05.1]} 41. Kd2 {[%clk 0:00:26.1]} 41...
Bc6 {[%clk 0:00:05.7]} 42. b4 {[%clk 0:00:26.4]} 42... Kd6 {[%clk 0:00:04.9]}
43. Kc3 {[%clk 0:00:22.5]} 43... Ne7 {[%clk 0:00:03.3]} 44. Kd4 {[%clk
0:00:13.4]} 44... Nc8 {[%clk 0:00:02.2]} 45. c5+ {[%clk 0:00:14.4]} 45... Kd7
{[%clk 0:00:03.2]} 46. b5 {[%clk 0:00:15.3]} 1-0